bitfinex/quotes_ETHUSD_20251018
["timestamp","ask_amount","ask_price","bid_price","bid_amount"]
[1760775409026,0.04465291,3903.4,3903.1,0.4356]
[1760775409225,0.128,3903.2,3903.1,0.4356]
[1760775409539,0.128,3903.2,3903.0,0.2261]
[1760775409745,0.128,3903.2,3903.1,0.4356]
[1760775410518,0.128,3903.2,3903.0,0.2261]
[1760775410723,0.128,3903.2,3903.0,0.6617]
[1760775411525,0.128,3903.2,3902.6,0.4376]
[1760775412527,0.128,3903.2,3902.7,2.56228559]
[1760775412727,0.128,3903.2,3902.8,0.4356]
[1760775413354,0.128,3903.2,3902.7,2.56228559]
[1760775413557,0.128,3903.2,3902.9,0.4356]
[1760775414167,0.128,3903.2,3903.0,0.4356]
[1760775417173,0.128,3903.2,3902.6,2.56437616]
[1760775417372,0.128,3903.2,3902.6,2.99997616]
[1760775417657,0.128,3903.2,3902.6,0.4376]
[1760775417984,0.04465619,3903.1,3902.6,0.4376]
[1760775418168,0.04465619,3903.1,3902.6,3.4357292]
[1760775418485,0.04465619,3903.1,3902.6,0.002]
[1760775418690,0.128,3902.7,3902.6,0.002]
[1760775419888,0.17265782,3902.7,3902.6,0.002]
[1760775420252,5.43975781,3902.7,3902.6,0.002]
[1760775421576,5.43975781,3902.7,3902.6,3.0387943]
[1760775422473,5.43975781,3902.7,3902.6,3.59892503]
[1760775422787,5.31175781,3902.7,3902.6,1.03653073]
[1760775423003,5.31175781,3902.7,3902.6,3.59892503]
[1760775424589,0.04465782,3902.7,3902.6,3.59892503]
[1760775425092,0.04465782,3902.7,3902.6,3.62454897]
[1760775425299,0.128,3903.0,3902.9,2.56219734]
[1760775425672,0.128,3903.0,3902.9,2.99779734]
[1760775426604,0.128,3903.0,3902.9,3.61001793]
[1760775429611,0.128,3903.0,3902.9,3.6356399]
[1760775429909,0.001,3903.2,3903.1,2.56206605]
[1760775430077,0.001,3903.2,3903.1,2.81788671]
[1760775430278,0.001,3903.2,3903.1,3.22786605]
[1760775430489,0.001,3903.2,3903.1,3.88089445]
[1760775432403,0.001,3903.2,3903.1,3.90651511]
[1760775433115,0.001,3903.2,3903.1,3.88089445]
[1760775434322,0.001,3903.2,3903.1,3.90651511]
[1760775434824,0.001,3903.2,3903.1,3.88089445]
[1760775435428,0.001,3903.2,3903.1,1.3188284]
[1760775435623,0.001,3903.2,3903.1,3.21509445]
[1760775436120,0.001,3903.2,3903.1,3.44529445]
[1760775436302,0.001,3903.2,3903.1,3.88089445]
[1760775437424,0.001,3903.2,3903.1,3.90651511]
[1760775437723,0.001,3903.2,3903.1,5.63451511]
[1760775437922,0.001,3903.2,3903.1,5.60889445]
[1760775438127,0.001,3903.2,3903.1,6.24249445]
[1760775438303,0.001,3903.2,3903.1,6.37049445]
[1760775441829,0.001,3903.2,3903.1,4.64249445]
[1760775442132,0.001,3903.2,3903.1,3.34309445]
[1760775446444,0.001,3903.2,3903.1,3.77869445]
[1760775446849,0.001,3903.2,3903.1,4.00889445]
[1760775447232,0.001,3903.2,3903.1,4.03451511]
[1760775447436,0.001,3903.2,3903.1,4.00889445]
[1760775447823,0.001,3903.2,3903.1,4.64249445]
[1760775449459,0.001,3903.2,3903.1,2.69006605]
[1760775454989,0.001,3903.2,3903.1,3.40758671]
[1760775458386,0.001,3903.2,3903.1,3.91318671]
[1760775458587,0.001,3903.2,3903.1,4.04118671]
[1760775459676,0.001,3903.2,3903.1,3.88756605]
[1760775459881,0.001,3903.2,3903.1,4.79214222]
[1760775460075,0.001,3903.2,3903.1,7.48986]
[1760775461265,0.001,3903.2,3903.1,10.19186]
[1760775461997,0.001,3903.2,3903.1,7.48986]
[1760775462164,0.001,3903.2,3903.1,9.21786]
[1760775462879,0.001,3903.2,3903.1,5.93096]
[1760775463080,0.001,3903.2,3903.1,4.39278383]
[1760775463267,0.001,3903.2,3903.1,5.02638383]
[1760775463468,0.001,3903.2,3903.1,2.66478383]
[1760775463701,0.001,3903.2,3903.1,3.29838383]
[1760775464009,0.001,3903.2,3903.1,3.79650449]
[1760775464204,0.001,3903.2,3903.1,4.6517745]
[1760775464516,0.001,3903.2,3903.1,3.93425384]
[1760775465677,0.001,3903.2,3903.1,3.9598745]
[1760775465865,0.001,3903.2,3903.1,4.40675384]
[1760775466306,0.001,3903.2,3903.1,4.62615384]
[1760775466468,0.001,3903.2,3903.1,4.6517745]
[1760775469706,0.001,3903.2,3903.1,4.7698245]
[1760775470812,0.001,3903.2,3903.1,4.05230384]
[1760775473226,0.001,3903.2,3903.1,3.41643383]
[1760775479859,0.001,3903.2,3903.1,3.41843383]
[1760775484486,0.2391,3903.2,3903.1,0.7636]
[1760775484651,0.001,3903.2,3903.1,3.32566605]
[1760775484977,0.001,3903.2,3903.1,4.65600776]
[1760775487081,0.001,3903.2,3903.1,4.6303871]
[1760775487590,0.001,3903.2,3903.1,3.9589871]
[1760775487787,0.001,3903.2,3903.1,3.32566605]
[1760775488485,0.001,3903.2,3903.1,3.99706605]
[1760775492496,0.001,3903.2,3903.1,3.32566605]
[1760775492876,0.2391,3903.2,3903.1,3.32566605]
[1760775493565,0.001,3903.2,3903.1,3.32566605]
[1760775493772,0.2391,3903.2,3903.1,2.69206605]
[1760775496693,0.2391,3903.2,3903.1,2.56406605]
[1760775499913,0.2391,3903.2,3903.1,0.002]
[1760775500325,0.2391,3903.2,3903.1,2.56406605]
[1760775500526,0.2391,3903.2,3903.1,0.002]
[1760775500724,0.2391,3903.2,3903.1,2.56406605]
[1760775502232,0.2391,3903.2,3903.1,0.002]
[1760775502396,7.51886775,3903.2,3903.1,0.002]
[1760775502586,10.08086815,3903.2,3903.1,0.002]
[1760775502790,7.51886775,3903.2,3903.1,0.002]
[1760775505598,7.28076775,3903.2,3903.1,0.002]
[1760775505838,1.729,3903.2,3903.1,0.002]
[1760775506720,1.9671,3903.2,3903.1,0.002]
[1760775515868,0.001,3903.2,3903.1,0.002]
[1760775516171,0.001,3903.2,3903.1,3.88356605]
[1760775516329,0.001,3903.2,3903.1,4.01156605]
[1760775516532,0.001,3903.2,3903.1,4.6689411]
[1760775530592,0.001,3903.2,3903.1,4.2114411]
[1760775530768,0.001,3903.2,3903.1,3.9830411]
[1760775530970,0.2373,3903.2,3903.1,0.002]
[1760775531383,0.28195249,3903.2,3903.1,0.002]
[1760775531704,0.2373,3903.2,3903.1,0.002]
[1760775533078,0.001,3903.2,3903.1,0.002]
[1760775534697,0.001,3903.2,3903.1,3.88356605]
[1760775534862,0.001,3903.2,3903.1,4.27192266]
[1760775540575,0.001,3903.2,3903.1,4.29293364]
[1760775540986,0.001,3903.2,3903.1,4.42093364]
[1760775541313,0.001,3903.2,3903.1,6.14893364]
[1760775541472,0.001,3903.2,3903.1,6.12792266]
[1760775542416,0.001,3903.2,3903.1,5.67042266]
[1760775542713,0.001,3903.2,3903.1,3.32566605]
[1760775543534,0.001,3903.2,3903.1,0.7636]
[1760775543850,0.001,3903.2,3903.1,3.32566605]
[1760775547233,0.001,3903.2,3903.1,0.7636]
[1760775547431,0.001,3903.2,3903.1,0.13]
[1760775547640,0.237,3903.2,3903.1,0.002]
[1760775549233,0.001,3903.2,3903.1,0.002]
[1760775549419,0.001,3903.2,3903.1,2.56406605]
[1760775550112,0.001,3903.2,3903.1,2.58968671]
[1760775550307,0.001,3903.2,3903.1,4.42727467]
[1760775550630,0.001,3903.2,3903.1,4.52965401]
[1760775550831,0.001,3903.2,3903.1,3.32566605]
[1760775551507,0.001,3903.2,3903.1,0.7636]
[1760775551706,0.237,3903.2,3903.1,3.32566605]
[1760775552241,0.237,3903.2,3903.1,0.002]
[1760775554132,0.001,3903.2,3903.1,0.002]
[1760775554514,0.001,3903.2,3903.1,2.56406605]
[1760775555316,0.04565123,3903.2,3903.1,2.56406605]
[1760775555513,0.04565123,3903.2,3903.1,0.002]
[1760775555919,0.04565123,3903.2,3903.1,0.4535]
[1760775556210,0.04565123,3903.2,3903.1,3.01556605]
[1760775557149,0.04565123,3903.2,3903.1,2.56406605]
[1760775558218,0.04565123,3903.2,3903.1,3.78106235]
[1760775558431,0.001,3903.2,3903.1,4.46986235]
[1760775558663,0.001,3903.2,3903.1,4.44424169]
[1760775558845,0.001,3903.2,3903.1,3.75544169]
[1760775559451,0.001,3903.2,3903.1,0.6356]
[1760775559651,0.237,3903.2,3903.1,0.6356]
[1760775560133,0.001,3903.2,3903.1,0.6356]
[1760775560330,0.237,3903.2,3903.1,0.6356]
[1760775560846,0.001,3903.2,3903.1,0.6356]
[1760775561262,0.237,3903.2,3903.1,0.002]
[1760775562450,0.001,3903.2,3903.1,2.56406605]
[1760775562773,0.001,3903.2,3903.1,0.002]
[1760775563239,0.001,3903.2,3903.1,2.56406605]
[1760775564859,0.001,3903.2,3903.1,2.58968671]
[1760775565071,0.001,3903.2,3903.1,4.40165324]
[1760775565256,0.001,3903.2,3903.1,4.52965324]
[1760775565876,0.001,3903.2,3903.1,4.5552739]
[1760775566788,0.001,3903.2,3903.1,4.52965324]
[1760775567388,0.001,3903.2,3903.1,4.5552739]
[1760775567569,0.001,3903.2,3903.1,4.52965324]
[1760775568391,0.001,3903.2,3903.1,3.84085324]
[1760775568890,0.001,3903.2,3903.1,4.52965324]
[1760775569390,0.001,3903.2,3903.1,3.84085324]
[1760775569570,0.001,3903.2,3903.1,3.32566605]
[1760775570789,0.001,3903.2,3903.1,0.13]
[1760775571086,0.001,3903.2,3903.1,0.002]
[1760775571087,0.2263,3903.2,3903.1,0.002]
[1760775572997,0.001,3903.2,3903.1,0.002]
[1760775573409,0.001,3903.2,3903.1,2.56406605]
[1760775573878,0.001,3903.2,3903.1,3.85826605]
[1760775574082,0.001,3903.2,3903.1,4.53873286]
[1760775574799,0.001,3903.2,3903.1,4.5131122]
[1760775574997,0.001,3903.2,3903.1,4.53873286]
[1760775576495,0.001,3903.2,3903.1,4.6411122]
[1760775577811,0.001,3903.2,3903.1,6.3691122]
[1760775578388,0.001,3903.6,3903.5,4.9234035]
[1760775578389,1e-08,3903.6,3903.5,4.9234035]
[1760775578581,1e-08,3903.6,3903.5,7.54102153]
[1760775578782,1e-08,3903.6,3903.5,8.0744035]
[1760775582211,1e-08,3903.6,3903.5,8.17709939]
[1760775583019,0.001,3904.4,3904.3,3.19487859]
[1760775583232,0.001,3904.4,3904.3,3.22049137]
[1760775583435,0.001,3904.4,3904.3,3.62587859]
[1760775583839,0.001,3904.4,3904.3,3.72856367]
[1760775585653,0.001,3904.4,3904.3,8.04756367]
[1760775585823,0.001,3904.4,3904.3,9.13397748]
[1760775589459,0.001,3904.4,3904.3,8.70297748]
[1760775590439,0.001,3904.4,3904.3,6.11197748]
[1760775590641,0.001,3904.4,3904.3,4.38397748]
[1760775590854,0.001,3904.4,3904.3,3.75037748]
[1760775591054,0.001,3904.4,3904.3,4.38397748]
[1760775591558,0.001,3904.4,3904.3,4.83934663]
[1760775592265,0.001,3904.4,3904.3,4.38397748]
[1760775593133,0.001,3904.4,3904.3,4.51197748]
[1760775594063,0.1,3904.4,3904.3,4.51197748]
[1760775594230,0.001,3904.4,3904.3,4.51197748]
[1760775594856,0.1,3904.4,3904.3,2.68927859]
[1760775595058,0.1,3904.4,3904.3,3.32287859]
[1760775596350,0.001,3904.4,3904.3,3.32287859]
[1760775596558,0.1,3904.4,3904.3,3.32287859]
[1760775597248,0.001,3904.4,3904.3,3.32287859]
[1760775597446,0.1,3904.4,3904.3,3.32287859]
[1760775598280,0.001,3904.4,3904.3,2.56127859]
[1760775598570,0.1,3904.4,3904.3,2.56127859]
[1760775600555,0.1,3904.4,3904.1,0.13]
[1760775600756,0.099,3904.3,3904.1,2.69140509]
[1760775601057,0.099,3904.2,3904.1,2.69140509]
[1760775601581,0.099,3904.2,3904.1,0.002]
[1760775604585,0.128,3904.3,3904.1,0.002]
[1760775604887,0.099,3904.2,3904.1,0.002]
[1760775609690,9.14973786,3904.2,3904.1,0.002]
[1760775609894,14.38920004,3904.2,3904.1,0.002]
[1760775610185,11.82785585,3904.2,3904.1,0.002]
[1760775610386,14.38920004,3904.2,3904.1,0.002]
[1760775610587,14.51526515,3904.2,3904.1,0.002]
[1760775611098,11.95392096,3904.2,3904.1,0.002]
[1760775611500,11.82785585,3904.2,3904.1,0.002]
[1760775611666,14.38920004,3904.2,3904.1,0.002]
[1760775611867,14.70464067,3904.2,3904.1,0.002]
[1760775612164,15.01613758,3904.2,3904.1,0.002]
[1760775612365,14.70464067,3904.2,3904.1,0.002]
[1760775612877,12.14329648,3904.2,3904.1,0.002]
[1760775613077,11.82785585,3904.2,3904.1,0.002]
[1760775613702,14.38920004,3904.2,3904.1,0.002]
[1760775613905,14.70464067,3904.2,3904.1,0.002]
[1760775614507,15.01613758,3904.2,3904.1,0.002]
[1760775616071,15.01713758,3904.2,3904.1,0.002]
[1760775617696,8.67215552,3904.2,3904.1,0.002]
[1760775617997,14.70564067,3904.2,3904.1,0.002]
[1760775620086,15.15214465,3904.2,3904.1,0.002]
[1760775621584,15.46364156,3904.2,3904.1,0.002]
[1760775621988,19.88087943,3904.2,3904.1,0.002]
[1760775622297,16.09724156,3904.2,3904.1,0.002]
[1760775622491,15.69538917,3904.2,3904.1,0.002]
[1760775622712,15.65073758,3904.2,3904.1,0.002]
[1760775622916,4.2898035,3903.5,3903.4,0.002]
[1760775623120,13.64998199,3903.5,3903.4,0.002]
[1760775623298,13.75028199,3903.5,3903.4,0.002]
[1760775624182,13.853061,3903.5,3903.4,0.002]
[1760775624385,13.75028199,3903.5,3903.4,0.002]
[1760775624589,14.70039998,3903.5,3903.4,0.002]
[1760775624814,14.74505673,3903.5,3903.4,0.002]
[1760775625235,15.05655364,3903.5,3903.4,0.002]
[1760775625720,15.56128884,3903.5,3903.4,0.002]
[1760775626925,11.77765097,3903.5,3903.4,0.002]
[1760775627129,15.46098884,3903.5,3903.4,0.002]
[1760775627432,15.45849821,3903.5,3903.4,0.002]
[1760775627621,15.56128462,3903.5,3903.4,0.002]
[1760775630423,10.17590666,3903.4,3903.3,0.002]
[1760775630618,11.72756242,3903.4,3903.3,0.002]
[1760775630836,11.82786242,3903.4,3903.3,0.002]
[1760775631345,2.5620004,3903.2,3902.3,0.002]
[1760775631508,8.70057581,3903.2,3902.3,0.002]
[1760775631704,9.7509938,3903.2,3902.3,0.002]
[1760775632101,9.85379236,3903.2,3902.3,0.002]
[1760775632307,9.85379236,3903.2,3902.4,0.4648]
[1760775632506,9.75349236,3903.2,3902.4,0.4648]
[1760775633008,9.6506938,3903.2,3902.7,0.4668]
[1760775633231,9.6506938,3903.2,3903.0,0.002]
[1760775633547,9.33919689,3903.2,3903.0,0.002]
[1760775634230,9.38385847,3903.2,3903.0,0.002]
[1760775634627,14.64295846,3903.2,3903.0,0.002]
[1760775634962,11.76551743,3903.2,3903.0,0.002]
[1760775635252,11.76551743,3903.2,3903.1,0.6884]
[1760775635450,14.32751783,3903.2,3903.1,0.002]
[1760775635832,14.42781783,3903.2,3903.1,0.002]
[1760775636227,14.74325846,3903.2,3903.1,0.002]
[1760775636922,15.24802101,3903.2,3903.1,0.002]
[1760775637926,15.14772101,3903.2,3903.1,0.002]
[1760775639326,15.04492272,3903.2,3903.1,0.002]
[1760775639736,15.14522272,3903.2,3903.1,0.002]
[1760775639933,15.04492272,3903.2,3903.1,0.002]
[1760775641148,15.04492272,3903.2,3903.1,0.6884]
[1760775641149,12.48292232,3903.2,3903.1,0.6884]
[1760775641457,15.04492272,3903.2,3903.1,0.6884]
[1760775641771,8.69928445,3903.2,3903.1,0.6884]
[1760775641975,7.43372583,3903.2,3903.1,0.6884]
[1760775642192,5.70572583,3903.2,3903.1,0.6884]
[1760775642364,5.30376157,3903.2,3903.1,0.6884]
[1760775642672,5.25909999,3903.2,3903.1,0.6884]
[1760775643060,0.128,3903.4,3903.1,0.6884]
[1760775643245,0.128,3903.4,3903.3,2.56193092]
[1760775643572,0.128,3903.4,3903.3,3.35196401]
[1760775644073,1.728,3904.1,3903.3,3.35196401]
[1760775644277,0.128,3903.7,3903.4,3.02666803]
[1760775644481,0.128,3903.7,3903.5,0.4648]
[1760775645086,0.17264741,3903.7,3903.5,0.4648]
[1760775648176,0.17264741,3903.7,3903.1,0.2236]
[1760775648372,0.04464741,3903.7,3903.2,0.4648]
[1760775648622,0.128,3903.3,3903.2,0.4648]
[1760775648907,0.128,3903.3,3903.2,0.79005807]
[1760775649284,0.17264895,3903.3,3903.2,0.4648]
[1760775650020,0.17364895,3903.3,3903.2,0.4648]
[1760775654640,0.17364895,3903.3,3903.1,0.2236]
[1760775655002,0.17364895,3903.3,3903.2,0.4648]
[1760775659851,0.04564895,3903.3,3903.2,3.0336425]
[1760775660051,0.04564895,3903.3,3903.2,1.04692874]
[1760775660255,0.04564895,3903.3,3903.1,0.3516]
[1760775660427,0.04564895,3903.3,3903.2,0.4404]
[1760775662053,0.04564895,3903.3,3903.1,0.2236]
[1760775662054,0.04564895,3903.3,3903.1,0.002]
[1760775662255,0.128,3903.2,3903.1,0.2277]
[1760775662867,0.128,3903.2,3903.1,0.6681]
[1760775664457,0.128,3903.2,3903.1,0.002]
[1760775667665,0.17265304,3903.2,3903.1,0.002]
[1760775670965,7.26005303,3903.2,3903.1,0.002]
[1760775671159,8.90846953,3903.2,3903.1,0.002]
[1760775672333,11.47046993,3903.2,3903.1,0.002]
[1760775672833,22.32182056,3903.2,3903.1,0.002]
[1760775673053,15.29047956,3903.2,3903.1,0.002]
[1760775673741,15.16247956,3903.2,3903.1,0.002]
[1760775673947,37.01027456,3903.2,3903.1,0.002]
[1760775674250,36.43751856,3903.2,3903.1,0.002]
[1760775674459,36.4821802,3903.2,3903.1,0.002]
[1760775674663,35.3977802,3903.2,3903.1,0.002]
[1760775674842,11.7025722,3903.2,3903.1,0.002]
[1760775675049,35.3977802,3903.2,3903.1,0.002]
[1760775675662,35.79975454,3903.2,3903.1,0.002]
[1760775675861,12.41604345,3903.2,3903.1,0.002]
[1760775676062,36.11125145,3903.2,3903.1,0.002]
[1760775676875,36.74485145,3903.2,3903.1,0.002]
[1760775677060,40.72463045,3903.2,3903.1,0.002]
[1760775677664,33.23265045,3903.2,3903.1,0.002]
[1760775677977,37.17159545,3903.2,3903.1,0.002]
[1760775678178,34.93883745,3903.2,3903.1,0.002]
[1760775678542,2.56226299,3902.8,3902.6,0.002]
[1760775678740,30.0,3902.5,3902.3,0.002]
[1760775679089,2.56336662,3901.2,3900.7,0.2319]
[1760775679253,1.728,3901.1,3900.7,0.2319]
[1760775679458,1.728,3901.2,3900.7,0.2319]
[1760775679657,1.728,3901.2,3900.5,0.4284]
[1760775680759,0.04467985,3901.1,3900.5,0.4284]
[1760775682341,0.04467985,3901.1,3900.0,0.2319]
[1760775682342,1.728,3900.9,3900.0,0.2319]
[1760775682542,1.728,3900.9,3900.1,0.4284]
[1760775682774,5.17277453,3901.0,3900.1,0.4284]
[1760775682775,1.728,3900.7,3900.1,0.4284]
[1760775682969,4.29165116,3900.7,3900.1,0.4284]
[1760775683141,0.31544063,3900.8,3900.0,0.2319]
[1760775683346,5.1399339,3901.0,3900.1,0.4284]
[1760775683347,0.86097808,3900.7,3900.1,0.4284]
[1760775683548,0.54553745,3900.7,3900.1,0.4284]
[1760775685348,0.31631791,3901.1,3900.1,0.4284]
[1760775685556,0.128,3900.2,3900.1,0.4284]
[1760775686182,0.128,3900.2,3900.1,2.99243681]
[1760775686678,0.128,3900.5,3900.2,2.5639231]
[1760775686981,0.128,3900.5,3900.3,0.4284]
[1760775687162,0.17268069,3900.5,3900.3,0.4284]
[1760775687368,0.17268069,3900.5,3900.3,1.00723245]
[1760775687767,0.17268069,3900.5,3900.4,0.4284]
[1760775688664,0.17268069,3900.5,3900.4,2.9922396]
[1760775688874,0.04468069,3900.5,3900.4,2.9922396]
[1760775689194,0.04468069,3900.5,3900.4,3.6258396]
[1760775689402,0.04468069,3900.5,3900.4,4.31550369]
[1760775690896,0.128,3901.2,3901.1,2.56337955]
[1760775691054,0.128,3901.2,3901.1,2.77947955]
[1760775691258,0.128,3901.7,3901.6,2.56299611]
[1760775691490,0.128,3901.7,3901.6,0.4517]
[1760775692903,0.128,3901.7,3901.6,4.20615594]
[1760775693057,5.25909999,3902.8,3901.8,2.5629062]
[1760775693263,1.728,3902.7,3901.8,2.5629062]
[1760775693630,1.728,3902.7,3901.9,3.01455273]
[1760775693961,1.728,3902.7,3902.0,3.01447388]
[1760775694156,1.728,3902.7,3902.1,0.6678]
[1760775694376,5.25909999,3902.8,3902.1,0.6678]
[1760775694770,1.77266517,3902.7,3902.1,0.6678]
[1760775697277,1.77266517,3902.7,3902.2,0.47732656]
[1760775697805,1.77266517,3902.7,3902.2,3.03997597]
[1760775697985,1.77266517,3902.7,3902.3,0.4517]
[1760775698362,1.77266517,3902.7,3902.4,0.02562525]
[1760775698567,0.04466517,3902.7,3902.3,0.4517]
[1760775698769,0.04466517,3902.7,3902.6,2.5623943]
[1760775699168,0.04466517,3902.7,3902.6,3.0140943]
[1760775699580,0.04466517,3902.7,3902.6,3.03971824]
[1760775699786,0.04466517,3902.7,3902.6,3.0140943]
[1760775700011,0.04466517,3902.7,3902.6,3.60405817]
[1760775701303,0.04566517,3902.7,3902.6,3.60405817]
[1760775702773,0.001,3902.7,3902.6,3.60405817]
[1760775702974,0.001,3902.7,3902.6,4.26328211]
[1760775704780,0.001,3902.7,3902.6,4.23765817]
[1760775709009,0.001,3902.7,3902.6,4.36565817]
[1760775709400,0.001,3902.7,3902.6,4.39128211]
[1760775709908,0.001,3902.7,3902.6,4.36565817]
[1760775712622,0.001,3902.7,3902.6,3.91395817]
[1760775712920,0.001,3902.7,3902.6,4.36565817]
[1760775713337,0.001,3902.7,3902.6,3.91395817]
[1760775720137,0.001,3902.7,3902.6,4.34435817]
[1760775721045,0.001,3902.7,3902.6,4.36998211]
[1760775721930,0.001,3902.7,3902.6,3.91395817]
[1760775722137,0.001,3902.7,3902.6,3.3239943]
[1760775722715,0.001,3902.7,3902.6,3.7543943]
[1760775723328,0.001,3902.7,3902.6,3.3239943]
[1760775724617,0.001,3902.7,3902.3,0.002]
[1760775724951,0.1011,3902.6,3902.5,2.5624496]
[1760775725451,0.1011,3902.6,3902.3,2.56454393]
[1760775725652,0.1011,3902.5,3902.3,2.56454393]
[1760775725856,0.001,3902.7,3902.3,0.002]
[1760775725857,0.1011,3902.4,3902.3,0.002]
[1760775726221,0.75912385,3902.4,3902.3,0.002]
[1760775726815,0.65802385,3902.4,3902.3,0.002]
[1760775727054,0.001,3902.7,3902.6,2.5623943]
[1760775727225,0.001,3902.7,3902.6,3.6506943]
[1760775727545,0.001,3902.7,3902.6,3.67631824]
[1760775727939,0.001,3902.7,3902.6,3.6506943]
[1760775730419,0.001,3902.7,3902.6,3.1959943]
[1760775730656,0.001,3902.7,3902.3,0.002]
[1760775730833,0.001,3902.7,3902.6,2.5623943]
[1760775731032,0.001,3902.7,3902.6,3.1959943]
[1760775731437,0.001,3902.7,3902.6,0.6336]
[1760775731620,0.001,3902.7,3902.6,3.1959943]
[1760775731824,0.001,3902.7,3902.6,4.22674617]
[1760775732449,0.001,3902.7,3902.6,4.25237011]
[1760775733524,0.001,3902.7,3902.6,3.77204617]
[1760775735559,0.001,3902.7,3902.6,4.22674617]
[1760775736159,0.001,3902.7,3902.6,3.77204617]
[1760775737162,0.001,3902.7,3902.6,3.90004617]
[1760775738264,0.001,3902.7,3902.6,4.38037011]
[1760775741645,0.001,3902.7,3902.6,3.90004617]
[1760775741851,0.001,3902.7,3902.6,4.35474617]
[1760775742974,0.001,3902.7,3902.6,3.90004617]
[1760775743355,0.001,3902.7,3902.6,4.35474617]
[1760775745378,0.001,3902.7,3902.6,4.45748189]
[1760775746243,0.001,3902.7,3902.6,4.00278189]
[1760775747140,0.001,3902.7,3902.6,3.90004617]
[1760775748456,0.001,3902.7,3902.6,3.3239943]
[1760775748662,0.1083,3902.7,3902.6,3.3239943]
[1760775749862,0.001,3902.7,3902.6,3.3239943]
[1760775750290,0.001,3902.7,3902.3,0.002]
[1760775750461,0.1073,3902.6,3902.5,2.56241649]
[1760775750654,0.1073,3902.6,3902.3,2.56457808]
[1760775750888,0.001,3902.7,3902.6,2.5623943]
[1760775751456,0.001,3902.7,3902.6,3.1959943]
[1760775751681,0.001,3902.7,3902.6,3.79767023]
[1760775751960,0.001,3902.7,3902.6,3.77204629]
[1760775752358,0.001,3902.7,3902.6,3.1959943]
[1760775753615,0.1046,3902.7,3902.6,3.1959943]
[1760775753895,0.1046,3902.7,3902.6,2.5623943]
[1760775754259,0.1046,3902.7,3902.3,2.56452935]
[1760775754463,0.1046,3902.7,3902.4,2.56248784]
[1760775754464,0.1036,3902.6,3902.4,2.56248784]
[1760775754657,0.001,3902.7,3902.4,0.6336]
[1760775754863,0.1036,3902.5,3902.4,3.19612562]
[1760775755575,0.1036,3902.5,3902.3,0.002]
[1760775756162,0.1036,3902.5,3902.3,2.56459129]
[1760775756375,0.1036,3902.4,3902.3,2.56459129]
[1760775756998,0.1036,3902.4,3902.3,0.002]
[1760775757862,0.1036,3902.4,3902.3,2.56459129]
[1760775758061,0.001,3902.7,3902.3,2.56459129]
[1760775758062,0.001,3902.7,3902.4,2.5625237]
[1760775758282,0.001,3902.7,3902.6,2.5623943]
[1760775758887,0.001,3902.7,3902.3,0.6356]
[1760775759082,0.001,3902.7,3902.5,2.56244572]
[1760775759795,0.001,3902.7,3902.6,2.5623943]
[1760775763366,0.001,3902.7,3902.6,2.58801824]
[1760775763569,0.001,3902.7,3902.6,3.0170943]
[1760775764096,0.001,3902.7,3902.6,2.5623943]
[1760775764300,0.001,3902.7,3902.6,3.65141616]
[1760775764704,0.001,3902.7,3902.6,3.6770401]
[1760775764902,0.001,3902.7,3902.6,3.19671616]
[1760775765111,0.001,3902.7,3902.6,2.5623943]
[1760775767585,0.001,3902.7,3902.6,3.6506943]
[1760775769915,0.001,3902.7,3902.6,3.7786943]
[1760775780818,0.001,3902.7,3902.6,3.80431824]
[1760775781129,0.001,3902.7,3902.6,3.42672606]
[1760775781308,0.001,3902.7,3902.6,4.3277111]
[1760775781930,0.001,3902.7,3902.6,4.22497934]
[1760775782315,0.001,3902.7,3902.6,4.65457934]
[1760775782503,0.001,3902.7,3902.6,4.22497934]
[1760775783216,0.001,3902.7,3902.6,0.128]
[1760775783401,0.1071,3902.7,3902.6,2.6903943]
[1760775783602,0.001,3902.7,3902.6,3.3239943]
[1760775784202,0.001,3902.7,3902.6,3.34961824]
[1760775784526,0.001,3902.7,3902.6,3.3239943]
[1760775785632,0.001,3902.7,3902.6,3.7903943]
[1760775785930,0.001,3902.7,3902.6,4.42844733]
[1760775788842,0.001,3902.7,3902.6,6.15644733]
[1760775789144,0.001,3902.7,3902.6,8.74544733]
[1760775792931,0.001,3902.7,3902.6,8.84816458]
[1760775793933,0.001,3902.7,3902.6,8.38176458]
[1760775794116,0.001,3902.7,3902.6,8.84816458]
[1760775796858,0.001,3902.7,3902.6,8.38176458]
[1760775797356,0.001,3902.7,3902.6,5.15916458]
[1760775797960,0.1098,3902.7,3902.6,5.69004733]
[1760775798135,0.001,3902.7,3902.6,5.69004733]
[1760775798629,0.1098,3902.7,3902.6,5.69004733]
[1760775799053,0.001,3902.7,3902.6,5.69004733]
[1760775799257,0.1098,3902.7,3902.6,5.69004733]
[1760775799640,0.1098,3902.7,3902.6,2.6903943]
[1760775800163,0.1098,3902.7,3902.6,0.128]
[1760775800361,0.1098,3902.7,3902.6,3.3239943]
[1760775801430,0.1098,3902.7,3902.6,0.7616]
[1760775801637,0.1098,3902.7,3902.3,0.002]
[1760775802868,0.128,3902.4,3902.3,0.002]
[1760775803233,0.2368,3902.4,3902.3,0.002]
[1760775809438,0.28146037,3902.4,3902.3,0.002]
[1760775812581,0.83561641,3902.4,3902.3,0.002]
[1760775812752,0.70761641,3902.4,3902.3,0.002]